[Event "ITT 1st Parada Jamundi 2022"]
[Site "Jamundi Valle"]
[Date "2022.12.07"]
[Round "4.5"]
[White "Malka, Samuel"]
[Black "Cori Quispe, Kevin Joel"]
[Result "0-1"]
[ECO "E11"]
[WhiteElo "2265"]
[BlackElo "2469"]
[Annotator "TA"]
[PlyCount "80"]
[EventDate "2022.12.05"]
[EventType "swiss"]
[EventCountry "COL"]
[SourceTitle "playchess.com"]
[Source "ChessBase"]
[SourceQuality "1"]
[TimeControl "5400+30"]

{[%evp 10,80,24,2,28,20,17,14,19,24,60,18,24,34,51,66,62,21,56,7,3,-35,-44,-57,-52,-48,-47,-121,-103,-103,-88,-71,-85,-75,-48,-60,-45,-53,-41,-79,-76,-75,-50,-61,-54,-304,-297,-279,-284,-360,-327,-245,-23,-66,-63,-60,-52,-833,-800,-748,-441,-2175,-2175,-2066,-2064,-2008,-1890,-1181,-921,-29973,-29975,-5183,-1946]} 1. d4 {[%emt 0:01:04]} Nf6 {[%emt 0:00:08]} 2. c4 {[%emt 0:00:05]} e6 {[%emt 0:00:19]} 3. Nf3 {[%emt 0:00:04]} Bb4+ {[%emt 0:00:39]} 4. Nbd2 {[%emt 0:00:13]} O-O {[%emt 0:00:40]} 5. a3 {[%emt 0:00:15]} Be7 {[%emt 0:00:35]} 6. e4 {[%emt 0:00:11]} d6 {[%emt 0:00:31][%cal Oe6e5] E11: Bogo-Indian.} (6... d5 $5 {[%cal Rd5e4]}) 7. Be2 {[%emt 0:00:13]} Nfd7 {[%emt 0:05:00] seems to push 7...Nbd7 aside.} 8. b4 {[%emt 0:00:57]} e5 {[%emt 0:00:05] The position is equal.} 9. d5 {[%emt 0:00:10]} c6 {[%emt 0:00:46]} 10. O-O {[%emt 0:01:28]} cxd5 {[%emt 0:00:14]} 11. cxd5 {[%emt 0:00:09]} Nb6 {[%emt 0:00:10] [#]} 12. a4 $146 {[%emt 0:13:10]} ({Predecessor:} 12. Nb3 f5 13. Na5 fxe4 14. Nd2 Bf5 15. Nxb7 Qc8 16. Na5 Nxd5 17. Bc4 Be6 18. Qb3 {½-½ (48) Cramling,P (2443)-Koneru,H (2577) Monte Carlo 2019}) 12... a5 {[%emt 0:08:48]} 13. b5 {[%emt 0:03:04]} f5 {[%emt 0:02:28]} 14. exf5 {[%emt 0:00:16]} (14. h3 $14) 14... Bxf5 $11 {[%emt 0:00:20]} 15. Ne1 {[%emt 0:06:30]} N8d7 {[%emt 0:01:13]} (15... Nxd5 $2 16. Bc4 $18) 16. Nc4 {[%emt 0:18:50]} Nxc4 {[%emt 0:03:33]} 17. Bxc4 {[%emt 0:00:01]} Rc8 {[%emt 0:00:12]} 18. Qe2 {[%emt 0:04:16]} (18. Bd3 $1 $15) 18... Bf6 {[%emt 0:03:57]} 19. Be3 {[%emt 0:06:23]} Qe8 {[%emt 0:06:06]} 20. Rc1 {[%emt 0:05:40]} Qg6 {[%emt 0:00:41]} 21. Qd2 {[%emt 0:05:14]} Nc5 {[%emt 0:06:06]} 22. Qxa5 {[%emt 0:00:44]} Bg5 {[%emt 0:00:35] White must now prevent ...Bxe3.} 23. Bxg5 {[%emt 0:05:18]} Qxg5 {[%emt 0:00:05]} 24. f4 {[%emt 0:00:09]} exf4 {[%emt 0:00:43] Threatens to win with ...Bg4. Black has more active pieces.} 25. Nf3 {[%emt 0:00:03]} Qf6 {[%emt 0:00:11]} (25... Qg6 $5 {[%cal Rf5e4]}) 26. Qd2 {[%emt 0:00:48]} g5 {[%emt 0:03:58][%cal Bg7g5,Bg5g4][%mdl 32] ...g4 is the strong threat.} 27. a5 $2 {[%emt 0:02:32] [#]} ({White should play} 27. Qd4 $15) 27... g4 $1 $19 {[%emt 0:09:45]} 28. Nd4 {[%emt 0:04:16] [#]} Bd3 $1 {[%emt 0:01:58][%mdl 512]} 29. Ne2 {[%emt 0:05:56]} (29. Ne6 Bxf1) 29... Bxe2 {[%emt 0:00:46]} 30. Qxe2 {[%emt 0:00:03]} h5 {[%emt 0:00:06]} (30... f3 $19 31. Qc2 Qf4) 31. a6 {[%emt 0:02:30]} bxa6 {[%emt 0:04:49]} 32. bxa6 {[%emt 0:00:09]} f3 $1 $36 {[%emt 0:08:55][%mdl 2048] Black has the initiative.} 33. Qf2 {[%emt 0:01:42][%mdl 8192]} (33. Qc2 $15) 33... Ne4 {[%emt 0:01:06]} 34. Qe3 {[%emt 0:00:04]} Rce8 {[%emt 0:00:09] aiming for ...f2+.} 35. Rce1 {[%emt 0:09:01]} (35. a7 $142 Ng3 36. Qf2 Nxf1 37. Rxf1) 35... f2+ {[%emt 0:01:38]} 36. Rxf2 {[%emt 0:00:03]} Nxf2 {[%emt 0:00:04]} 37. Qxe8 {[%emt 0:00:03]} Rxe8 {[%emt 0:01:55]} 38. Rxe8+ {[%emt 0:00:01]} Kf7 {[%emt 0:01:13][%cal Of6d4] ( -> ...Qd4!)} 39. a7 {[%emt 0:00:07]} Qa1+ {[%emt 0:01:29]} (39... Kxe8 $2 40. a8=Q+ (40. a8=B {gets mated.} Qd4 41. h4 g3 42. Bb5+ Ke7 43. Bf1 Nh3+ 44. Kh1 Qg1#) 40... Kf7 41. Qa7+ Kg6 42. Qxf2 $18) 40. Kxf2 {[%emt 0:00:03]} Kxe8 {[%emt 0:00:08] Weighted Error Value: White=0.81/Black=0.34} 0-1

[Event "ITT 1st Parada Jamundi 2022"]
[Site "Jamundi Valle"]
[Date "2022.12.07"]
[Round "4.6"]
[White "Larino Nieto, David"]
[Black "Mora Munoz, Alejandro"]
[Result "0-1"]
[ECO "B53"]
[WhiteElo "2466"]
[BlackElo "1959"]
[Annotator "TA"]
[PlyCount "116"]
[EventDate "2022.12.05"]
[EventType "swiss"]
[EventCountry "COL"]
[SourceTitle "playchess.com"]
[Source "ChessBase"]
[SourceQuality "1"]
[TimeControl "5400+30"]

{[%evp 23,116,0,26,5,23,27,53,62,78,67,79,91,100,65,88,45,33,31,52,36,36,11,27,0,0,-24,-15,-69,0,-27,25,30,31,23,33,53,62,62,85,11,66,10,10,10,10,9,9,0,0,0,0,0,77,73,143,154,144,64,73,72,73,0,159,-22,0,0,173,-22,0,0,0,0,-3,-263,-232,-506,-348,-345,-278,-254,0,-333,0,-518,-486,-566,-570,-802,-554,-531,-503,-657,-643,-653,-635]} 1. e4 {[%emt 0:00:02]} c5 {[%emt 0:01:04]} 2. Nf3 {[%emt 0:00:02]} d6 {[%emt 0:00:16]} 3. d4 {[%emt 0:00:01]} cxd4 {[%emt 0:00:10]} 4. Qxd4 {[%emt 0:00:02]} Nc6 {[%emt 0:01:54]} 5. Bb5 {[%emt 0:00:02]} Bd7 {[%emt 0:00:36]} 6. Bxc6 {[%emt 0:00:01]} Bxc6 {[%emt 0:00:18]} 7. Nc3 {[%emt 0:00:01]} Nf6 {[%emt 0:00:32]} 8. Bg5 {[%emt 0:00:02]} e6 {[%emt 0:02:35]} 9. O-O-O {[%emt 0:00:03]} Be7 {[%emt 0:00:08]} 10. Rhe1 {[%emt 0:00:05]} Qa5 {[%emt 0:20:20]} 11. Kb1 {[%emt 0:01:10]} O-O {[%emt 0:06:02]} 12. Qd2 {[%emt 0:00:31]} Qb6 {[%emt 0:14:01]} 13. Nd4 {[%emt 0:01:08] B53: Sicilian: 2...d6: Lines with Qxd4.} Rfd8 {[%emt 0:04:51]} 14. f3 {[%emt 0:00:53] [#]} Rd7 $146 {[%emt 0:03:10]} ({Predecessor:} 14... Be8 15. g4 Rac8 16. h4 a6 17. Nce2 Qc7 18. Ng3 b5 19. Rg1 Kf8 20. Nh5 Ng8 {1-0 (63) Gavrilescu,D (2470)-Acs,P (2565) Tornelo INT 2021}) 15. h4 {[%emt 0:00:20][%cal Bh2h4,Bh4h5][%mdl 32] White is slightly better.} a6 {[%emt 0:09:29]} 16. g4 {[%emt 0:00:13]} Qc7 {[%emt 0:00:49]} 17. Nce2 {[%emt 0:01:19]} Ne8 {[%emt 0:02:49]} 18. Ng3 {[%emt 0:02:49]} Bf8 {[%emt 0:03:32]} 19. h5 {[%emt 0:02:21]} e5 {[%emt 0:02:46] Against h6} 20. Nxc6 {[%emt 0:00:20]} bxc6 {[%emt 0:00:23]} 21. f4 {[%emt 0:00:03]} Qb6 {[%emt 0:03:52]} 22. fxe5 {[%emt 0:01:17] Black must now prevent Re3.} Rb7 {[%emt 0:00:08][%csl Gb7][%cal Rb6b2]} 23. b3 {[%emt 0:01:05]} dxe5 {[%emt 0:00:08]} 24. Nf5 {[%emt 0:01:01]} (24. Be3 $5 {[%cal Re3b6]} Qb4 25. Qxb4 Bxb4 26. Rf1 $14) 24... a5 {[%emt 0:01:04]} 25. Be3 {[%emt 0:03:17] Prevents a4.} (25. Re3 $11) 25... Qb4 {[%emt 0:01:37]} (25... c5 $1 $15) 26. g5 {[%emt 0:01:02]} a4 {[%emt 0:05:06]} (26... Qxe4 $142 27. Qd3 Qxd3 28. Rxd3 a4) 27. Qxb4 $11 {[%emt 0:00:06]} Rxb4 {[%emt 0:00:23]} 28. Bd2 {[%emt 0:00:30]} Rb6 {[%emt 0:00:09]} 29. Bc3 {[%emt 0:00:09]} axb3 {[%emt 0:00:31]} 30. cxb3 {[%emt 0:00:09]} f6 {[%emt 0:01:30]} 31. Rd7 {[%emt 0:01:16]} ({Better is} 31. Rg1 $16) 31... c5 {[%emt 0:03:51]} ({Black should try} 31... fxg5 $11 32. Ne7+ (32. Bxe5 c5 $11) 32... Bxe7 33. Rxe7 h6) 32. Ne3 {[%emt 0:01:21]} (32. Ne7+ $14 Bxe7 33. Rxe7) 32... fxg5 {[%emt 0:01:06]} 33. Bxe5 {[%emt 0:00:40]} Nf6 {[%emt 0:01:28]} 34. Bxf6 {[%emt 0:00:06]} Rxf6 {[%emt 0:00:16]} 35. e5 {[%emt 0:00:18]} Rf2 {[%emt 0:00:46]} 36. a4 $36 {[%emt 0:00:13][%cal Ba2a4,Ba4a5][%mdl 2080] White fights for an advantage.} Rb8 {[%emt 0:00:46]} 37. Rd3 {[%emt 0:00:03]} Re8 {[%emt 0:04:03] Prevents e6.} (37... Rf4 $11 {remains equal.} 38. Nd5 c4 39. Nxf4 cxd3 40. Nxd3 Rxb3+ 41. Kc2 Ra3) 38. Nc4 $16 {[%emt 0:00:21]} Kf7 {[%emt 0:02:52]} (38... Rh2 $142) 39. a5 {[%emt 0:02:05]} Ke6 {[%emt 0:00:59] [#]} 40. Rd6+ $1 {[%emt 0:00:53][%mdl 512]} Bxd6 $14 {[%emt 0:02:51]} 41. exd6+ {[%emt 0:00:01][%mdl 4096] Endgame KRR-KRN} Kf7 {[%emt 0:00:00][%cal Re8e1]} 42. Rd1 {[%emt 0:00:10]} (42. Ne5+ $16 Kg8 43. d7) 42... Rb8 $2 {[%emt 0:00:47] [#]} ({Black should play} 42... g4 $11 43. d7 Rd8 44. Nd6+ (44. Ne5+ $2 Ke6 $19) 44... Ke7) 43. Rd3 $2 {[%emt 0:00:40]} (43. d7 $1 $16 Rd8 44. a6) 43... Re8 {[%emt 0:00:05] ( -> ...Re1+)} (43... Ke6 {seems wilder.} 44. a6 Rff8 45. Re3+ Kd5) 44. Rd1 {[%emt 0:00:32] Inhibits Re1. Hoping for a6.} Rb8 $2 {[%emt 0:00:01] [#]} (44... g4 $11 45. d7 Rd8 46. Nd6+ (46. Ne5+ $2 Ke6 $19) 46... Ke7) 45. Nb6 $2 {[%emt 0:01:05]} (45. d7 $1 $18 Rd8 46. a6) 45... Rf4 {[%emt 0:01:17] Prevents a6.} (45... g4 {is interesting.} 46. Rg1 Rf3 47. d7 g3) 46. Kc2 {[%emt 0:04:25]} (46. d7 $5 Rd8 $8 47. Kc2 $11) 46... Rd4 {[%emt 0:00:16] Strongly threatening ...Rxd1.} (46... g4 {keeps more tension.} 47. d7 Rd8 48. Kc3 Rd4) 47. Rf1+ {[%emt 0:00:01]} Ke6 {[%emt 0:00:13]} 48. Re1+ $2 {[%emt 0:00:09][%mdl 8192]} (48. Nc4 $1 $11 {and White has nothing to worry.}) 48... Kxd6 $19 {[%emt 0:00:11] Threatens to win with ...Rh4.} 49. Rf1 $2 {[%emt 0:01:15]} (49. Nc4+ Kc6 50. Re6+ Kd7 51. Re5) 49... Ke6 {[%emt 0:02:59]} 50. Re1+ {[%emt 0:00:07]} Kf6 {[%emt 0:00:00] aiming for ...g4.} 51. Rf1+ {[%emt 0:00:08]} Ke6 {[%emt 0:00:00]} 52. Re1+ {[%emt 0:00:01]} Kd6 {[%emt 0:00:00]} (52... Kf5 $142 53. Re7 Rh4 54. Rxg7 Rxh5) 53. Rf1 $1 {[%emt 0:00:17]} Rf4 {[%emt 0:00:07] Against Rf5. Black is clearly winning.} 54. Rd1+ {[%emt 0:00:33]} Kc6 {[%emt 0:00:05]} 55. Nd7 {[%emt 0:00:12]} Ra8 {[%emt 0:00:51]} 56. Ne5+ {[%emt 0:00:06]} Kb5 {[%emt 0:00:10]} 57. Nc4 {[%emt 0:00:35]} Rf2+ {[%emt 0:00:45]} 58. Kc3 {[%emt 0:00:06]} Raf8 {[%emt 0:00:22] What a bad dream for White.   Weighted Error Value: White=0.51/Black=0.53} 0-1

[Event "ITT 1st Parada Jamundi 2022"]
[Site "Jamundi Valle"]
[Date "2022.12.07"]
[Round "4.7"]
[White "Paredes Lagos, Anthony Javier"]
[Black "Aguero Jimenez, Luis Lazaro"]
[Result "1-0"]
[ECO "B12"]
[WhiteElo "2230"]
[BlackElo "2465"]
[Annotator "TA"]
[PlyCount "116"]
[EventDate "2022.12.05"]
[EventType "swiss"]
[EventCountry "COL"]
[SourceTitle "playchess.com"]
[Source "ChessBase"]
[SourceQuality "1"]
[TimeControl "5400+30"]

{[%evp 9,116,24,22,-1,3,-19,75,-7,0,0,-7,0,18,0,0,0,24,0,21,-3,41,-25,-12,-59,-50,-31,-22,-21,-17,-36,-7,-96,-61,-230,-231,-204,-25,-350,-321,-415,-212,-191,-197,-244,-251,-262,-29,-29,-29,-28,-36,-31,-16,-34,10,11,11,0,0,0,0,0,0,0,0,0,0,0,33,60,97,83,287,286,295,279,278,218,287,281,336,336,393,393,341,323,318,313,553,495,460,429,682,669,664,642,613,564,1226,927,1535,497,1441,923,729,801,12848,12848,12849]} 1. e4 {[%emt 0:00:12]} c6 {[%emt 0:00:04]} 2. d4 {[%emt 0:00:15]} d5 {[%emt 0:00:03]} 3. e5 {[%emt 0:00:19]} Bf5 {[%emt 0:00:05]} 4. h4 {[%emt 0:01:24]} Qb6 {[%emt 0:01:12]} 5. g4 {[%emt 0:05:03]} Bd7 {[%emt 0:00:04][%cal Oh7h5]} (5... Be4 $2 6. f3 Bxc2 7. Qxc2 $18) 6. c3 {[%emt 0:08:02] Against h5. B12: Caro-Kann: Advance Variation.} e6 {[%emt 0:00:08] [#]} 7. Nd2 $146 {[%emt 0:04:31]} ({Predecessor:} 7. Bd3 h5 8. gxh5 c5 9. Ne2 Nc6 10. Be3 c4 11. Bc2 Qxb2 12. Nd2 Qa3 13. Nf1 {0-1 (52) Karabalis,H (2252)-Kukhmazov,A (2472) Chess.com INT 2022}) 7... f6 {[%emt 0:07:37]} (7... c5 $11 {keeps the balance.}) 8. f4 {[%emt 0:04:35]} ({Better is} 8. exf6 $1 $16 {g5 is the strong threat.} Nxf6 9. g5) 8... c5 $11 {[%emt 0:00:17]} 9. Ndf3 {[%emt 0:01:27]} Nc6 {[%emt 0:01:10]} 10. Ne2 {[%emt 0:00:56]} Rc8 {[%emt 0:03:11]} 11. Kf2 {[%emt 0:09:09]} Nh6 {[%emt 0:11:41]} 12. Bh3 {[%emt 0:00:53]} Nf7 {[%emt 0:03:36]} 13. Kg3 {[%emt 0:08:06]} Be7 {[%emt 0:01:32]} 14. Re1 {[%emt 0:05:18]} O-O {[%emt 0:01:34]} (14... cxd4 {is interesting.} 15. cxd4 fxe5 16. dxe5 O-O) 15. exf6 {[%emt 0:19:54]} (15. g5 $14) 15... gxf6 {[%emt 0:00:12]} 16. dxc5 {[%emt 0:01:20]} (16. g5 $11) 16... Bxc5 $15 {[%emt 0:00:36]} 17. Kg2 {[%emt 0:01:11]} Kh8 $36 {[%emt 0:01:20][%mdl 2048] Black is pushing.} 18. Ng3 {[%emt 0:05:46]} Nd6 {[%emt 0:07:18][%cal Oe6e5]} 19. Re2 {[%emt 0:00:09] Against e5. Strongly threatening b4.} a5 {[%emt 0:02:19][%cal Oe6e5] Prevents b4.} 20. b3 {[%emt 0:00:30] Against e5} (20. g5 $11 {remains equal.}) 20... Ne7 {[%emt 0:10:28][%cal Od6e4]} (20... e5 {is more complex.} 21. g5 e4 22. Nh2 Qc7) 21. Bb2 $2 {[%emt 0:02:03]} (21. g5 $15) 21... Ng6 $19 {[%emt 0:32:11]} 22. Nh5 {[%emt 0:00:05][%cal Oc3c4]} Be3 $2 {[%emt 0:04:57] Prevents c4.} (22... Qc7 $1 $19 23. c4 Ne4) 23. Nd4 $2 {[%emt 0:04:36][%mdl 8192]} (23. g5 $11 {and White stays safe.}) 23... Bxf4 {[%emt 0:03:45]} (23... Nxf4+ 24. Nxf4 Bxf4 25. Nxe6 Bxe6 26. Rxe6 $17) (23... Nxh4+ 24. Kg3 Bxd4 25. Qxd4 Qxd4 26. cxd4 $11) 24. Nxe6 {[%emt 0:02:31]} Nxh4+ {[%emt 0:00:18]} (24... Bxe6 $142 25. Rxe6 Be5) 25. Kh1 {[%emt 0:00:08]} Bxe6 {[%emt 0:02:28]} 26. Nxf4 {[%emt 0:00:05]} (26. Rxe6 {was worth a try.} Rfe8 27. Rxf6 (27. Nxf4 $2 Rxe6 28. Qg1 Qxg1+ 29. Rxg1 Re4 $19)) 26... Ne4 {[%emt 0:00:42]} 27. Qg1 {[%emt 0:01:16] [#] Inhibits Nf2+.} Qxg1+ {[%emt 0:02:58]} ({Black should play} 27... Qc6 $1 $19 {[%cal Od5d4] aiming for ...d4!} 28. Qe3 Bd7) 28. Rxg1 $11 {[%emt 0:00:04]} Rce8 {[%emt 0:00:55]} 29. c4 {[%emt 0:06:01]} Nf3 {[%emt 0:00:22]} 30. Rgg2 {[%emt 0:00:41]} Nfg5 {[%emt 0:00:59] Pair of Knights!} 31. cxd5 {[%emt 0:01:29]} Bxd5 {[%emt 0:01:08]} 32. Nxd5 {[%emt 0:00:18]} Nxh3 {[%emt 0:00:04]} 33. Rxe4 {[%emt 0:03:10][%mdl 64]} Rxe4 {[%emt 0:00:06]} 34. Nxf6 {[%emt 0:00:04]} Rxf6 {[%emt 0:00:40]} 35. g5 {[%emt 0:00:53][%mdl 64] Pin} Kg8 {[%emt 0:00:58] ( -> ...Nf2+)} 36. gxf6+ {[%emt 0:00:11][%mdl 4096] Endgame KRB-KRN} Kf8 {[%emt 0:00:08]} 37. Rc2 {[%emt 0:01:06]} Ng5 {[%emt 0:00:49]} 38. Kg2 {[%emt 0:00:24]} Kf7 {[%emt 0:00:54]} 39. Rc7+ {[%emt 0:00:48]} Kg6 {[%emt 0:00:31] White must now prevent ...Re2+.} 40. Rg7+ {[%emt 0:01:15]} (40. Rxb7 $2 Re2+ 41. Kg3 Rxb2 $19) 40... Kf5 $2 {[%emt 0:00:00] [#]} (40... Kh5 $16) 41. f7 $1 $18 {[%emt 0:02:08]} ({Worse is} 41. Rxb7 Re2+ 42. Kg3 Ne4+ 43. Kf3 Rxb2 $11) 41... Ne6 {[%emt 0:00:03] Against f8Q+} 42. f8=Q+ {[%emt 0:00:52]} ({Weaker is} 42. Rxh7 Re2+ 43. Kg3 Rxb2 $11) 42... Nxf8 {[%emt 0:00:07]} 43. Rf7+ {[%emt 0:00:02]} ({Inferior is} 43. Rxb7 Re2+ 44. Kf3 Rxb2 $15) 43... Kg4 {[%emt 0:01:07]} 44. Rxf8 {[%emt 0:00:02] KRB-KR} a4 {[%emt 0:00:04]} 45. Rg8+ {[%emt 0:01:11]} Kf5 {[%emt 0:00:12]} 46. Kf3 {[%emt 0:00:16] Against Re2} Rh4 {[%emt 0:00:19]} 47. Rf8+ {[%emt 0:00:20]} Ke6 {[%emt 0:00:07]} 48. Kg3 {[%emt 0:00:45]} Rh1 {[%emt 0:00:57]} (48... Rh5 49. bxa4 Rg5+ 50. Kf3 Rh5) 49. bxa4 {[%emt 0:00:41][%cal Bb3a4,Ba4a5][%mdl 32] White is clearly winning.} Rg1+ {[%emt 0:00:06]} 50. Kf2 {[%emt 0:00:07]} Rb1 {[%emt 0:00:00]} (50... Rg4 $142 51. a5 Ra4) 51. Bc3 {[%emt 0:00:37]} Rc1 {[%emt 0:00:10]} 52. Bd2 {[%emt 0:00:55]} Rc2 {[%emt 0:00:06]} 53. Ke1 {[%emt 0:00:06]} Rxa2 {[%emt 0:00:07]} 54. a5 {[%emt 0:00:04] Hoping for Rb8.} Rb2 {[%emt 0:03:44]} 55. Be3 {[%emt 0:00:01]} (55. Rh8 $142 h6 56. Rxh6+ Kd5 57. Kd1) 55... Kd5 {[%emt 0:00:45]} (55... Rb5 $142 56. Bb6 Rg5 57. Re8+ Kd6) 56. Rh8 {[%emt 0:00:31]} Rh2 {[%emt 0:00:37]} 57. Rc8 {[%emt 0:00:40]} Kd6 {[%emt 0:00:31]} 58. Bf4+ {[%emt 0:00:04]} Kd5 {[%emt 0:01:08] White used his chance.   Weighted Error Value: White=0.41/Black=0.58} 1-0

[Event "ITT 1st Parada Jamundi 2022"]
[Site "Jamundi Valle"]
[Date "2022.12.07"]
[Round "4.8"]
[White "Rios, Cristhian Camilo"]
[Black "Mateus, Alejandro"]
[Result "1/2-1/2"]
[ECO "B53"]
[WhiteElo "2456"]
[BlackElo "2308"]
[Annotator "TA"]
[PlyCount "49"]
[EventDate "2022.12.05"]
[EventType "swiss"]
[EventCountry "COL"]
[SourceTitle "playchess.com"]
[Source "ChessBase"]
[SourceQuality "1"]
[TimeControl "5400+30"]

{[%evp 17,49,-11,-8,-7,-7,0,0,0,0,0,0,0,-6,-7,14,14,13,20,14,12,28,29,35,34,28,0,0,-10,0,0,0,-20,0,0]} 1. e4 {[%emt 0:11:43]} c5 {[%emt 0:00:09]} 2. Nf3 {[%emt 0:00:19]} d6 {[%emt 0:00:14]} 3. d4 {[%emt 0:00:37]} cxd4 {[%emt 0:00:18]} 4. Qxd4 {[%emt 0:00:23]} Nc6 {[%emt 0:01:48]} 5. Bb5 {[%emt 0:01:02]} Bd7 {[%emt 0:02:33]} 6. Bxc6 {[%emt 0:07:13]} Bxc6 {[%emt 0:00:21]} 7. Nc3 {[%emt 0:00:10]} Nf6 {[%emt 0:06:04]} 8. Bg5 {[%emt 0:04:33]} e6 {[%emt 0:03:57]} 9. O-O-O {[%emt 0:00:10][%cal Ba1d1,Bd1d6,Bd6d4,Bd4d7,Bd7b7][%mdl 32]} Be7 {[%emt 0:00:27]} 10. Bxf6 {[%emt 0:11:28] 10.Qd3 is setting a new trend. B53: Sicilian: 2...d6: Lines with Qxd4.} Bxf6 {[%emt 0:09:29]} 11. Qxd6 {[%emt 0:02:30]} Qxd6 {[%emt 0:14:03]} 12. Rxd6 {[%emt 0:00:18]} Bxc3 {[%emt 0:00:34]} 13. bxc3 {[%emt 0:00:20]} Bxe4 {[%emt 0:00:51]} 14. Ne5 $1 {[%emt 0:05:37]} Rc8 {[%emt 0:20:55]} 15. Rd4 {[%emt 0:01:18]} Bc6 {[%emt 0:13:13] [#]} 16. Nxc6 $146 {[%emt 0:02:23]} ({Predecessor:} 16. Rhd1 O-O 17. g3 b5 18. Nxc6 Rxc6 19. Rd7 Rxc3 20. Rxa7 Rfc8 21. Rd2 h5 22. Kd1 {½-½ (30) Bowcott Terry,F (2001)-Snape,I (2127) England 2021}) 16... Rxc6 $11 {[%emt 0:01:25][%mdl 4096] Endgame KRR-KRR} 17. Rhd1 {[%emt 0:01:10] [#] And now Rd8+ would win.} O-O $1 {[%emt 0:03:20][%cal Oa7a6]} 18. Rd7 {[%emt 0:03:14]} Rxc3 {[%emt 0:03:42]} 19. Rxb7 {[%emt 0:00:08]} Rfc8 {[%emt 0:01:05]} 20. Rd2 {[%emt 0:00:16]} a6 {[%emt 0:04:25]} 21. Kb2 {[%emt 0:00:19]} (21. Rb6 $5) 21... R3c6 {[%emt 0:01:51] The position is equal.} 22. Kb3 {[%emt 0:00:48]} Rc3+ {[%emt 0:01:29]} 23. Kb2 {[%emt 0:00:12]} R3c6 {[%emt 0:00:07] Against Rb6} 24. Kb3 {[%emt 0:00:25]} Rc3+ {[%emt 0:00:10]} 25. Kb2 {[%emt 0:00:06] Weighted Error Value: White=0.02 (flawless) /Black=0.05 (flawless)} 1/2-1/2